bitfinex-derivatives/quotes_ETHF0:USTF0_20251005
["timestamp","ask_amount","ask_price","bid_price","bid_amount"]
[1759688769366,0.3609,4516.2,4516.1,0.3856]
[1759688769664,0.3609,4516.2,4516.1,0.78936409]
[1759688769665,0.8111,4516.2,4516.1,0.78936409]
[1759688770279,0.81394154,4516.2,4516.1,0.78936409]
[1759688770471,0.81394154,4516.2,4516.1,0.1928]
[1759688771769,0.22484154,4516.2,4516.1,0.5061]
[1759688771971,1.03594154,4516.2,4516.1,0.1928]
[1759688774669,1.03594154,4516.2,4515.2,0.3856]
[1759688774670,0.3609,4515.4,4515.2,0.3856]
[1759688774875,1.1323,4515.5,4515.4,0.3856]
[1759688775077,1.1323,4515.5,4515.4,0.98026826]
[1759688775271,1.1323,4515.5,4515.4,5.98026826]
[1759688775471,1.3577,4515.5,4515.4,0.78746826]
[1759688775672,1.20966,4514.9,4514.8,0.3856]
[1759688775876,0.98426,4514.9,4514.8,0.98032148]
[1759688776174,0.39856,4514.9,4514.8,1.10082148]
[1759688776370,0.509,4515.0,4514.9,0.1205]
[1759688776576,0.509,4515.0,4514.9,1.10078974]
[1759688776777,0.3609,4515.0,4514.9,1.10078974]
[1759688777170,0.509,4515.0,4514.9,0.98028974]
[1759688777575,0.509,4515.0,4514.9,1.19518974]
[1759688778775,0.7639,4515.0,4514.9,0.98028974]
[1759688779673,1.0176,4515.0,4514.9,0.98028974]
[1759688780667,1.98944855,4515.0,4514.6,3.2078]
[1759688780977,1.31967,4514.7,4514.6,3.4876]
[1759688781170,1.31967,4514.7,4514.6,4.08288351]
[1759688781376,1.31967,4514.7,4514.6,4.35318351]
[1759688784877,1.31967,4514.7,4514.6,3.80308351]
[1759688785181,2.29151855,4514.7,4514.6,0.59528351]
[1759688786581,0.81107,4514.7,4514.6,1.14538351]
[1759688786785,1.06597,4514.7,4514.6,1.14538351]
[1759688787481,1.06597,4514.7,4514.6,1.9381676]
[1759688788188,1.31967,4514.7,4514.6,1.14538351]
[1759688788988,1.54167,4514.7,4514.6,1.14538351]
[1759688789188,2.51351855,4514.7,4514.6,1.78700845]
[1759688789386,2.51351855,4514.7,4514.6,1.78413307]
[1759688789787,2.51351855,4514.7,4514.6,0.59528351]
[1759688795593,0.9431,4514.4,4514.3,0.79273564]
[1759688795893,1.5556,4514.4,4514.3,0.79273564]
[1759688796185,0.3905,4514.3,4514.2,1.04983564]
[1759688796390,0.935,4514.3,4514.2,1.04983564]
[1759688797091,0.935,4514.3,4514.2,0.2571]
[1759688797786,0.935,4514.3,4514.2,0.5308]
[1759688804191,0.6598,4514.3,4514.2,0.5308]
[1759688804394,0.6598,4514.3,4514.2,0.7387]
[1759688804395,0.6125,4514.3,4514.2,0.7387]
[1759688804998,0.3986,4514.4,4514.3,0.7387]
[1759688805299,0.7891,4514.4,4514.3,0.7387]
[1759688806096,1.0584,4514.4,4514.3,0.5308]
[1759688806302,1.3336,4514.4,4514.3,0.5308]
[1759688807106,1.3336,4514.4,4514.3,1.40528725]
[1759688807802,1.3336,4514.4,4514.3,1.13158725]
[1759688809495,1.0584,4514.4,4514.3,1.39508725]
[1759688812209,1.3081,4514.4,4514.3,0.87448725]
[1759688812602,0.39863,4514.1,4514.0,2.46344247]
[1759688812799,1.29683,4514.1,4514.0,2.99804247]
[1759688813206,1.29683,4514.1,4514.0,1.40908725]
[1759688814808,0.39863,4514.1,4514.0,6.61008725]
[1759688815311,0.77633,4514.1,4514.0,6.61008725]
[1759688816106,1.04713,4514.1,4514.0,1.40908725]
[1759688816507,1.29683,4514.1,4514.0,1.40908725]
[1759688820919,0.77633,4514.1,4514.0,1.61008725]
[1759688821815,1.04713,4514.1,4514.0,1.40908725]
[1759688822219,1.29683,4514.1,4514.0,1.40908725]
[1759688824133,1.29685,4513.8,4513.7,0.87448725]
[1759688824536,2.26869855,4513.8,4513.7,1.14558725]
[1759688825133,2.26869855,4513.8,4513.7,2.73746632]
[1759688825430,2.26869855,4513.8,4513.7,1.40908725]
[1759688825933,2.26869855,4513.8,4513.7,1.61008725]
[1759688826633,0.1653,4514.0,4513.9,0.7356]
[1759688826634,0.39864,4514.0,4513.9,0.7356]
[1759688826836,0.39864,4514.0,4513.9,0.9576]
[1759688828629,0.39864,4514.0,4513.9,5.9576]
[1759688829329,0.77634,4514.0,4513.9,0.9576]
[1759688830029,0.39864,4514.0,4513.9,0.9576]
[1759688830835,0.3777,4514.3,4514.2,0.7356]
[1759688831027,0.77631,4514.3,4514.2,3.20186146]
[1759688831235,0.77631,4514.3,4514.2,3.42386146]
[1759688831532,0.77631,4514.3,4514.2,6.63166146]
[1759688831935,0.77631,4514.3,4514.2,5.03988725]
[1759688832832,1.04711,4514.3,4514.2,5.03988725]
[1759688837433,2.28535855,4514.3,4514.2,4.83888725]
[1759688838339,0.77631,4514.3,4514.2,5.02618725]
[1759688838635,2.27355855,4514.3,4514.2,0.222]
[1759688840936,0.80473,4514.0,4513.9,1.60368725]
[1759688841144,1.19333,4514.0,4513.9,1.60368725]
[1759688841336,2.43157855,4514.0,4513.9,1.60368725]
[1759688843144,2.43157855,4514.0,4513.9,1.35298725]
[1759688844040,2.43157855,4514.0,4513.9,1.60368725]
[1759688846348,1.31265,4513.8,4513.7,1.59191278]
[1759688846542,0.3886,4513.7,4513.6,1.09648725]
[1759688846736,1.88584855,4513.7,4513.6,1.09648725]
[1759688849047,1.88584855,4513.7,4513.6,1.35298725]
[1759688850648,1.88584855,4513.7,4513.6,1.60368725]
[1759688861150,1.31427,4513.6,4513.5,0.26472548]
[1759688861355,1.31427,4513.6,4513.5,1.40161273]
[1759688863658,1.31427,4513.6,4513.5,1.13921273]
[1759688863858,1.31427,4513.6,4513.5,0.87661273]
[1759688864461,1.31427,4513.6,4513.5,1.13921273]
[1759688866267,1.31427,4513.6,4513.5,0.00212548]
[1759688866966,1.31427,4513.6,4513.5,0.26472548]
[1759688869060,0.9156,4513.6,4513.5,0.26472548]
[1759688869266,0.81580418,4513.6,4513.5,0.90752548]
[1759688870566,0.3691,4514.0,4513.8,0.90594]
[1759688870567,0.3892,4513.9,4513.8,0.90594]
[1759688870768,1.62134855,4513.9,4513.8,4.49714]
[1759688871163,1.2954,4514.4,4514.3,0.8907]
[1759688871364,1.2954,4514.4,4514.3,4.0985]
[1759688872269,1.86864855,4514.4,4514.3,4.0985]
[1759688873471,1.86864855,4514.4,4514.3,5.69089207]
[1759688874768,0.3892,4514.4,4514.3,5.69089207]
[1759688875467,0.39859,4514.5,4514.3,5.69089207]
[1759688875667,0.78779,4514.5,4514.4,1.1127]
[1759688875971,0.3892,4514.5,4514.4,1.1127]
[1759688876171,0.39859,4514.6,4514.4,2.70509207]
[1759688876370,0.39859,4514.6,4514.5,1.0179]
[1759688876571,0.78779,4514.6,4514.5,1.0179]
[1759688877472,1.04809,4514.6,4514.5,0.8907]
[1759688878676,0.99623,4515.7,4514.5,0.1272]
[1759688878978,1.29531,4515.4,4515.3,0.2479]
[1759688879378,2.26715855,4515.4,4515.3,0.2479]
[1759688881177,1.29531,4515.4,4515.3,0.8907]
[1759688881386,1.29531,4515.4,4515.3,1.1127]
[1759688882285,1.29531,4515.4,4515.3,0.7293]
[1759688883081,1.29531,4515.4,4515.3,1.1127]
[1759688885382,0.39851,4515.4,4515.3,2.16239959]
[1759688885682,0.3985,4515.6,4515.5,0.662]
[1759688885883,0.2603,4515.8,4515.7,0.8907]
[1759688886190,0.2603,4515.8,4515.7,1.9062308]
[1759688886386,0.6495,4515.8,4515.7,2.3047208]
[1759688886587,0.6495,4515.8,4515.7,5.76868959]
[1759688886790,0.3892,4515.8,4515.7,5.76868959]
[1759688886994,1.04795,4516.1,4516.0,0.5073]
[1759688887194,2.01979855,4516.1,4516.0,1.1127]
[1759688888298,2.26709855,4516.1,4516.0,1.1127]
[1759688888793,2.26709855,4516.1,4516.0,0.4699]
[1759688888992,2.26709855,4516.1,4515.9,0.59503595]
[1759688888993,0.5468,4516.0,4515.9,0.59503595]
[1759688889298,0.90607,4515.9,4515.8,0.59503595]
[1759688889488,1.29527,4515.9,4515.8,0.59503595]
[1759688890391,0.8968,4515.8,4515.7,3.80283595]
[1759688891283,0.39849,4515.7,4515.6,0.59503595]
[1759688891490,1.29529,4515.7,4515.6,0.59503595]
[1759688892190,1.29529,4515.7,4515.5,0.222]
[1759688892385,1.29529,4515.7,4515.6,0.59443968]
[1759688893194,1.29529,4515.7,4515.5,0.59443968]
[1759688893397,0.222,4515.9,4515.3,1.04128126]
[1759688893398,0.5076,4515.4,4515.3,1.04128126]
[1759688893596,1.86864855,4515.4,4515.3,1.04128126]
[1759688894590,0.8968,4515.4,4515.3,1.04128126]
[1759688895798,0.8968,4515.4,4515.3,0.79338126]
[1759688895799,1.86864855,4515.4,4515.3,0.79338126]
[1759688896199,1.29532,4515.3,4515.2,1.01538126]
[1759688896500,1.29532,4515.3,4515.2,0.81681515]
[1759688896895,1.29532,4515.3,4515.2,0.59481515]
[1759688897090,0.90613,4515.2,4515.1,1.1900719]
[1759688897290,0.39855,4515.0,4514.9,0.222]
[1759688897594,2.40959855,4515.0,4514.9,0.222]
[1759688898500,2.40959855,4515.0,4514.9,0.4812]
[1759688901503,2.40959855,4515.0,4514.9,2.07359207]
[1759688904007,2.01104855,4515.0,4514.9,2.31329207]
[1759688904208,2.01104855,4515.0,4514.9,2.69719207]
[1759688904409,2.01104855,4515.0,4514.9,1.1048]
[1759688906111,0.6367,4515.0,4514.9,1.1048]
[1759688906612,0.3913,4515.0,4514.9,2.15449959]
[1759688908006,0.6367,4515.4,4515.3,0.4989]
[1759688908214,1.03521,4515.4,4515.3,4.3126]
[1759688908406,2.00705855,4515.4,4515.3,5.9030927]
[1759688908605,2.26485855,4515.4,4515.3,5.9030927]
[1759688908802,0.39849,4515.7,4515.4,0.3839]
[1759688909121,0.2454,4515.7,4515.6,0.8828]
[1759688909511,1.86634855,4515.7,4515.6,0.8828]
[1759688911907,1.86634855,4515.7,4515.6,0.4989]
[1759688916312,1.27769,4515.6,4515.5,1.8124927]
[1759688916710,1.27769,4515.6,4515.5,2.0616927]
[1759688917910,1.27769,4515.6,4515.5,2.7040927]
[1759688921119,0.8792,4515.6,4515.5,2.7040927]
[1759688922413,0.8792,4515.6,4515.5,5.9118927]
[1759688925417,0.6586,4516.0,4515.9,0.8916]
[1759688925812,2.02890855,4516.0,4515.9,0.8916]
[1759688926012,0.89948,4515.8,4515.7,0.222]
[1759688926211,1.27768,4515.8,4515.7,0.222]
[1759688926514,0.8792,4515.8,4515.7,1.1136]
[1759688927116,0.8792,4515.8,4515.7,1.98749983]
[1759688931518,1.85104855,4515.8,4515.7,0.222]
[1759688932720,1.85104855,4515.8,4515.7,1.74788983]
[1759688933025,1.85104855,4515.8,4515.7,0.222]
[1759688934527,1.85104855,4515.8,4515.7,0.4755]
[1759688941934,1.85104855,4515.8,4515.7,0.222]
[1759688947040,1.85104855,4515.8,4515.7,1.8124927]
[1759688948139,1.85104855,4515.8,4515.7,2.0659927]
[1759688950443,0.8792,4515.8,4515.7,2.6647927]
[1759688953339,0.8792,4515.8,4515.7,1.0743]
[1759688953541,0.8792,4515.8,4515.7,2.66875956]
[1759688954442,0.8792,4515.8,4515.7,1.0743]
[1759688955946,0.8792,4515.8,4515.7,0.7179]
[1759688956247,0.8792,4515.8,4515.7,1.0743]
[1759688956742,0.8792,4515.8,4515.7,0.7179]
[1759688957249,0.8792,4515.8,4515.7,1.0743]
[1759688958451,0.8792,4515.8,4515.7,0.7179]
[1759688963258,0.8792,4515.8,4515.7,0.4755]
[1759688964755,0.3782,4515.8,4515.7,1.0999]
[1759688964963,0.8691,4515.8,4515.7,0.7271]
[1759688967068,0.8691,4515.8,4515.7,2.3217498]
[1759688969260,0.8691,4515.8,4515.7,2.6945498]
[1759688973270,0.8691,4515.8,4515.7,2.3217498]
[1759688973467,0.8691,4515.8,4515.7,2.6853498]
[1759688975067,1.84094855,4515.8,4515.7,0.9206598]
[1759688975375,1.39615,4515.0,4514.9,0.4093637]
[1759688975567,1.39615,4515.0,4514.9,0.222]
[1759688976271,1.39615,4515.0,4514.6,3.2078]
[1759688976272,1.25737,4514.7,4514.6,3.2078]
[1759688976582,0.3771,4514.3,4513.6,6.36203716]
[1759688976771,1.02196,4513.7,4513.6,4.0539]
[1759688976966,1.02196,4513.7,4513.6,4.2759]
[1759688977475,0.6233,4513.7,4513.6,4.2759]
[1759688977771,0.3771,4513.8,4513.7,0.8461]
[1759688977964,0.3771,4513.8,4513.7,1.94199983]
[1759688983871,0.6233,4513.8,4513.7,1.94199983]
[1759688985677,0.3771,4515.0,4514.9,0.4825]
[1759688985877,0.3771,4515.0,4514.9,1.94199983]
[1759688986385,0.3771,4515.0,4514.9,2.73603821]
[1759688987077,0.6233,4515.0,4514.9,1.94199983]
[1759688987279,1.25736,4514.9,4514.8,1.42155758]
[1759688987577,1.25736,4514.9,4514.8,1.64355758]
[1759688989283,0.88026,4514.9,4514.7,1.19105758]
[1759688989583,0.8331,4514.8,4514.7,0.79425787]
[1759688989785,1.23167,4514.7,4514.6,0.79425787]
[1759688991385,6.23167,4514.7,4514.5,0.59575103]
[1759688991688,0.8331,4514.6,4514.5,0.59575103]
[1759688992387,0.8331,4514.6,4514.5,0.14436103]
[1759688997486,1.0551,4514.6,4514.5,0.8645]
[1759688997681,0.3567,4514.7,4514.5,1.83004787]
[1759688997881,0.1388,4515.0,4514.9,0.4939]
[1759688997882,0.97725,4515.0,4514.9,0.4939]
[1759688998088,1.21465,4515.0,4514.9,0.8645]
[1759688998289,1.59775,4515.0,4514.9,0.8645]
[1759688998788,1.59775,4515.0,4514.9,0.4939]
[1759689000394,1.37575,4515.0,4514.9,0.4939]
[1759689000897,0.87496,4514.8,4514.7,1.03455787]
[1759689001091,1.23166,4514.8,4514.7,0.2403]
[1759689001298,1.23166,4514.8,4514.7,1.40515787]
[1759689001493,0.5941,4514.8,4514.7,1.65875787]
[1759689001698,0.8331,4514.8,4514.7,1.65875787]
[1759689002292,0.8331,4514.8,4514.7,0.8645]
[1759689002787,0.3567,4514.8,4514.7,0.8645]
[1759689002988,0.3567,4514.9,4514.8,1.26306]
[1759689003193,0.5941,4515.3,4515.2,0.8645]
[1759689004595,0.8331,4515.9,4515.8,0.8645]
[1759689004899,0.5941,4515.9,4515.8,1.66009358]
[1759689005304,0.5941,4516.0,4515.9,1.02267]
[1759689005601,0.5941,4516.0,4515.9,0.8645]
[1759689005897,0.5941,4516.0,4515.9,1.26297]
[1759689006094,0.8331,4516.0,4515.9,0.8645]
[1759689006300,0.9772,4516.0,4515.9,0.8645]
[1759689006909,0.9772,4516.0,4515.9,0.4939]
[1759689007705,0.9772,4516.0,4515.9,0.8645]
[1759689008107,0.9772,4516.0,4515.9,1.65926501]
[1759689008703,0.5941,4516.0,4515.9,1.65926501]
[1759689008906,0.5941,4516.0,4515.9,0.8645]
[1759689009111,0.5941,4516.0,4515.9,1.65907839]
[1759689009613,0.3567,4516.0,4515.9,0.8645]
[1759689010105,0.5941,4516.0,4515.9,0.8645]
[1759689010313,0.5941,4516.0,4515.9,2.05581816]
[1759689010503,0.5941,4516.1,4516.0,0.39846]
[1759689010705,0.00284154,4516.2,4516.1,0.3706]
[1759689011012,0.83594154,4516.2,4516.1,0.8645]
[1759689011308,0.83594154,4516.2,4516.0,3.2078]
[1759689011309,0.3567,4516.1,4516.0,3.2078]
[1759689011512,0.8331,4516.1,4516.0,3.2078]
[1759689011715,0.8331,4516.1,4516.0,3.4298]
[1759689012109,0.8331,4516.1,4516.0,4.22370036]
[1759689013008,0.8331,4516.1,4516.0,0.79390036]
[1759689013208,1.37566,4516.0,4515.9,0.79390036]
[1759689013516,0.9772,4516.0,4515.9,0.79390036]
[1759689013810,0.9772,4516.0,4515.9,1.03420036]
[1759689017113,0.9772,4516.0,4515.9,0.2403]
[1759689018016,0.8331,4516.0,4515.9,0.8654]
[1759689018207,0.5941,4516.0,4515.9,0.8654]
[1759689018408,0.5941,4516.0,4515.7,0.222]
[1759689018409,0.00284154,4516.2,4516.1,0.872]
[1759689018611,0.00284154,4516.2,4516.1,5.35098425]
[1759689019714,0.00284154,4516.2,4516.1,10.35098425]
[1759689020214,0.00284154,4516.2,4516.1,11.14390473]
[1759689020410,0.00284154,4516.2,4516.1,10.35098425]
[1759689021316,0.00284154,4516.2,4516.1,11.14373404]
[1759689022814,0.00284154,4516.2,4516.1,10.35098425]
[1759689023121,0.00284154,4516.2,4516.1,11.14357671]
[1759689023321,0.00284154,4516.2,4516.1,10.35098425]
[1759689024214,1.54e-06,4516.2,4516.1,10.35098425]
[1759689025108,1.54e-06,4516.2,4516.1,11.54230241]
[1759689026220,1.54e-06,4516.2,4516.1,10.35098425]
[1759689027917,1.54e-06,4516.2,4516.1,11.93906102]
[1759689031424,1.54e-06,4516.2,4516.1,10.35098425]
[1759689031820,1.54e-06,4516.2,4516.1,6.93795212]
[1759689031821,0.34810154,4516.2,4516.1,6.93795212]
[1759689032223,0.34810154,4516.2,4516.1,5.35098425]
[1759689032422,0.34810154,4516.2,4516.1,5.12898425]
[1759689032625,0.58920154,4516.2,4516.1,5.35098425]
[1759689033827,0.58920154,4516.2,4516.1,4.0798]
[1759689033828,0.82500154,4516.2,4516.1,4.0798]
[1759689034024,0.58920154,4516.2,4516.1,5.87038445]
[1759689034223,1.54e-06,4516.2,4516.1,4.97438425]
[1759689034421,1.54e-06,4516.2,4516.1,6.5632447]
[1759689035222,0.3759,4517.8,4516.1,9.47898425]
[1759689035424,0.3759,4517.8,4516.0,35.72458425]
[1759689035425,0.8623,4517.8,4517.7,0.79427203]
[1759689035625,1.26061,4517.7,4517.6,0.79427203]
[1759689036029,6.26061,4517.7,4517.6,0.79427203]
[1759689036225,0.39834,4517.4,4517.3,0.32287803]
[1759689036427,1.0037,4517.0,4516.9,1.19140804]
[1759689036825,0.88478,4516.9,4516.7,1.19140804]
[1759689037025,0.8623,4516.8,4516.7,1.19140804]
[1759689037324,0.8623,4516.6,4516.5,0.222]
[1759689037619,0.8623,4516.6,4516.5,0.22384703]
[1759689039930,0.8623,4516.6,4516.5,0.45404703]
[1759689042033,0.8623,4516.6,4516.5,0.22384703]
[1759689042827,0.8623,4516.6,4516.5,0.45404703]
[1759689043023,0.8623,4516.6,4516.5,1.06544703]
[1759689044831,0.8623,4516.6,4516.5,0.70864703]
[1759689046937,0.8623,4516.6,4516.5,0.22384703]
[1759689047137,0.8623,4516.6,4516.5,0.00184703]
[1759689049335,0.8623,4516.6,4516.5,0.24114703]
[1759689050429,0.8623,4516.6,4516.5,0.00184703]
[1759689054841,0.3507,4516.1,4516.0,1.58854406]
[1759689055044,1.23628,4515.8,4515.7,1.58854406]
[1759689055731,0.3507,4515.7,4515.6,4.79634406]
[1759689055935,0.8378,4515.7,4515.6,5.03564406]
[1759689056135,0.8378,4515.7,4515.6,5.0376594]
[1759689056844,0.8378,4515.7,4515.6,4.7983594]
[1759689057239,0.8378,4515.7,4515.6,0.00201534]
[1759689058138,4.0456,4515.7,4515.6,0.00201534]
[1759689062143,4.2676,4515.7,4515.6,0.00201534]
[1759689062837,9.2676,4515.7,4515.6,1.534e-05]
[1759689063144,9.2676,4515.7,4514.9,1.19360202]
[1759689063145,0.6347,4515.0,4514.9,1.19360202]
[1759689063349,1.23636,4514.9,4514.8,1.19360202]
[1759689063942,1.23636,4514.9,4514.8,1.19613992]
[1759689064650,1.23636,4514.9,4514.8,0.0025379]
[1759689065349,0.8378,4514.9,4514.8,0.8354379]
[1759689066040,0.8378,4514.9,4514.8,0.4815379]
[1759689066239,0.8378,4514.9,4514.8,0.0025379]
[1759689066548,0.8378,4514.9,4514.8,0.59797148]
[1759689066743,0.8378,4514.9,4514.8,0.83727148]
[1759689067052,0.8378,4514.9,4514.8,0.59797148]
[1759689067945,0.8378,4514.9,4514.8,0.83727148]
[1759689069153,0.8378,4514.9,4514.8,0.59797148]
[1759689070056,0.8378,4514.9,4514.8,0.83727148]
[1759689073148,0.8378,4514.9,4514.8,1.43087148]
[1759689073349,1.17315551,4516.4,4515.4,0.2393]
[1759689073350,1.0332,4515.5,4515.4,0.2393]
[1759689073550,0.63415,4515.0,4514.9,1.42833358]
[1759689073744,1.03325,4515.0,4514.9,0.8329]
[1759689073949,1.38395,4515.0,4514.9,0.8329]
[1759689074253,1.38395,4515.0,4514.9,1.42833358]
[1759689075154,0.9854,4515.0,4514.9,1.42833358]
[1759689076155,0.98485,4515.0,4514.9,1.42833358]
[1759689076954,0.98485,4515.0,4514.9,0.8329]
[1759689078650,0.6141,4515.3,4515.2,0.4632]
[1759689078851,0.6141,4515.3,4515.2,0.8032]
[1759689079048,1.01262,4515.3,4515.2,0.8032]
[1759689080046,0.77301,4515.5,4515.3,0.34]
[1759689080356,0.3745,4515.5,4515.4,1.39871481]
[1759689080751,0.1476,4516.0,4515.5,0.9028]
[1759689080957,1.40756,4516.0,4515.9,0.2333]
[1759689082758,0.8615,4515.9,4515.8,0.59553692]
[1759689082963,0.8615,4515.9,4515.8,0.10511692]
[1759689083157,0.88551,4515.4,4515.3,0.2944595]
[1759689083460,1.26004,4515.1,4515.0,1.19360202]
[1759689083652,1.26004,4515.1,4514.9,1.19360202]
[1759689083858,1.0075,4515.0,4514.9,1.42690202]
[1759689084259,1.0075,4515.0,4514.9,0.2333]
[1759689085059,1.0075,4515.0,4514.9,0.8032]
[1759689085558,1.0075,4515.0,4514.9,0.4632]
[1759689086760,1.0075,4515.0,4514.9,0.8032]
[1759689086961,1.0075,4515.0,4514.9,0.4632]
[1759689087956,1.0075,4515.0,4514.9,0.2333]
[1759689088157,0.39856,4514.9,4514.8,0.0025379]
[1759689088358,1.26006,4514.9,4514.8,0.2358379]
[1759689091168,1.26006,4514.9,4514.8,0.8057379]
[1759689091667,0.8615,4514.9,4514.8,0.8057379]
[1759689099972,0.8615,4514.9,4514.8,0.4657379]
[1759689100172,0.3745,4514.9,4514.8,2.62538196]
[1759689100973,0.3745,4514.9,4514.8,3.49908233]
[1759689101174,0.632,4515.5,4515.4,0.2356]
[1759689101375,0.632,4515.5,4515.4,0.821]
[1759689101771,0.9732,4515.5,4515.4,0.821]
[1759689102174,0.9732,4515.5,4515.4,2.01596261]
[1759689102574,0.9732,4515.5,4515.4,0.821]
[1759689103887,1.22571,4515.4,4515.3,0.222]
[1759689104884,1.22571,4515.4,4515.3,0.4576]
[1759689112690,1.22571,4515.4,4515.3,0.222]
[1759689113888,0.8272,4515.4,4515.3,0.4534]
[1759689114391,0.8272,4515.4,4515.3,0.7992]
[1759689115989,0.8272,4515.4,4515.3,1.0374]
[1759689117292,0.5905,4515.4,4515.3,1.0374]
[1759689117496,0.5917,4515.8,4515.7,0.8154]
[1759689117697,0.5917,4515.8,4515.7,4.0232]
[1759689118589,0.5917,4515.8,4515.7,5.21748417]
[1759689118995,0.5917,4515.8,4515.7,4.0232]
[1759689120301,0.3649,4515.8,4515.7,4.0232]
[1759689120488,0.39843,4516.4,4515.7,4.0232]
[1759689120691,0.3649,4516.3,4516.2,5.2169917]
[1759689120892,0.4727,4516.4,4516.2,4.4015917]
[1759689121097,0.1471,4516.5,4516.0,1.1937917]
[1759689121098,0.87115,4516.1,4516.0,1.1937917]
[1759689121297,1.23605,4516.1,4516.0,1.1937917]
[1759689122200,0.9847,4516.0,4515.9,1.1937917]
[1759689124699,0.9847,4516.0,4515.8,1.1937917]
[1759689124700,1.23607,4515.9,4515.8,1.1937917]
[1759689124999,0.39853,4515.2,4515.1,0.79531]
[1759689125205,1.23613,4515.2,4515.1,0.79531]
[1759689127201,0.222,4515.4,4515.0,1.1937917]
[1759689127202,1.23614,4515.1,4515.0,1.1937917]
[1759689127807,1.23614,4515.1,4515.0,1.4251917]
[1759689128112,1.23614,4515.1,4515.0,1.1937917]
[1759689129206,0.9847,4515.0,4514.9,1.1937917]
[1759689129598,0.9847,4515.0,4514.8,1.1963296]
[1759689129811,1.45816,4514.9,4514.8,0.0025379]
[1759689137903,0.8376,4514.9,4514.8,0.8292379]
[1759689139007,1.04898691,4515.8,4514.8,0.8292379]
[1759689139008,0.39851,4515.4,4514.9,0.76066]
[1759689139304,1.18441,4515.4,4515.3,0.8267]
[1759689139705,0.96241,4515.4,4515.3,0.8267]
[1759689140007,1.41441,4515.4,4515.3,0.8267]
[1759689141514,1.19241,4515.4,4515.3,0.8267]
[1759689141812,1.41441,4515.4,4515.3,0.8267]
[1759689143009,1.0159,4515.4,4515.3,1.42225112]
[1759689143207,0.39849,4515.7,4515.4,0.3621]
[1759689143510,1.19239,4515.7,4515.6,0.8267]
[1759689143701,1.41439,4515.7,4515.6,0.2307]
[1759689144816,1.41439,4515.7,4515.6,0.8267]
[1759689145408,1.41439,4515.7,4515.6,0.4646]
[1759689146815,1.0159,4515.7,4515.6,0.8267]
[1759689147112,0.7939,4515.7,4515.6,1.42225112]
[1759689147909,4.40012,4516.4,4516.3,0.2307]
[1759689148114,4.62212,4516.4,4516.3,0.2307]
[1759689148909,1.41432,4516.4,4516.3,0.2307]
[1759689149815,0.39844,4516.2,4516.1,0.59494916]
[1759689150012,1.19234,4516.2,4516.1,0.82564916]
[1759689150213,1.41434,4516.2,4516.1,0.82564916]
[1759689155216,1.41434,4516.2,4516.1,1.05954916]
[1759689155420,1.41434,4516.2,4516.1,1.41584916]
[1759689155917,1.41434,4516.2,4516.1,0.59494916]
[1759689156417,1.41434,4516.2,4516.1,0.82714916]
[1759689157117,1.19234,4516.2,4516.1,0.82714916]
[1759689157319,1.19234,4516.2,4516.1,0.2322]
[1759689158621,0.7939,4516.2,4516.1,0.472]
[1759689158822,0.3435,4517.2,4516.5,0.1364]
[1759689159120,0.5832,4517.4,4517.3,0.472]
[1759689159418,0.8201,4517.4,4517.3,0.472]
[1759689159621,0.39835,4517.2,4517.1,3.2078]
[1759689159915,1.21845,4517.2,4517.1,3.44]
[1759689160327,0.5832,4517.2,4517.1,4.0361]
[1759689160621,0.3435,4517.2,4517.1,4.0361]
[1759689160822,0.74185,4517.2,4517.1,4.0361]
[1759689161124,0.98155,4517.2,4517.1,4.0361]
[1759689161516,0.5832,4517.2,4517.1,4.0361]
[1759689162019,0.8201,4517.2,4517.1,4.0361]
[1759689162226,0.8201,4517.2,4517.1,3.6798]
[1759689163024,0.8201,4517.2,4516.9,0.59494916]
[1759689163025,0.39836,4517.1,4516.9,0.59494916]
[1759689163221,1.21848,4516.9,4516.8,0.2322]
[1759689163419,0.3435,4516.9,4516.8,0.8283]
[1759689164315,0.3435,4516.9,4516.8,1.22669]
[1759689164517,0.74183,4517.4,4517.3,0.472]
[1759689164716,0.98153,4517.4,4517.3,0.8283]
[1759689165722,1.21843,4517.4,4517.3,0.8283]
[1759689168229,1.21843,4517.4,4517.3,0.2322]
[1759689172625,1.21843,4517.4,4517.3,0.4562]
[1759689173433,1.21843,4517.4,4517.3,0.7956]
[1759689174530,0.8201,4517.4,4517.3,0.7956]
[1759689175328,0.5832,4517.4,4517.3,0.7956]
[1759689175528,0.00178508,4517.7,4517.5,0.461]
[1759689175529,0.39832,4517.6,4517.5,0.461]
[1759689175729,0.75522,4517.6,4517.5,4.0082]
[1759689176028,0.39832,4517.6,4517.5,4.0082]
[1759689176630,0.75522,4517.6,4517.5,4.0082]
[1759689177031,0.98152,4517.6,4517.5,4.0082]
[1759689177732,0.75522,4517.6,4517.5,4.0082]
[1759689178427,0.00178508,4517.7,4517.6,0.3394]
[1759689178632,0.35868508,4517.7,4517.6,1.0224]
[1759689178934,0.00178508,4517.7,4517.6,1.0224]
[1759689180436,0.00178508,4517.7,4517.6,6.61734916]
[1759689180631,0.00178508,4517.7,4517.6,1.61734916]
[1759689180632,0.58498508,4517.7,4517.6,1.61734916]
[1759689180935,0.81788508,4517.7,4517.6,1.27794916]
[1759689181135,0.81788508,4517.7,4517.6,1.61734916]
[1759689181438,0.58498508,4517.7,4517.6,1.61734916]
[1759689183138,0.58498508,4517.7,4517.6,1.0224]
[1759689184039,0.35868508,4517.7,4517.6,1.0224]
[1759689184432,0.81788508,4517.7,4517.6,1.0224]
[1759689185235,0.81788508,4517.7,4517.6,0.683]
[1759689186035,0.00178508,4517.7,4517.6,1.0224]
[1759689186235,0.00178508,4517.7,4517.6,1.81797513]
[1759689187241,0.00178508,4517.7,4517.6,2.2161917]
[1759689188242,0.00178508,4517.7,4517.6,1.0224]
[1759689189438,0.35868508,4517.7,4517.6,1.0224]
[1759689190245,0.00178508,4517.7,4517.6,1.0224]
[1759689190838,0.00178508,4517.7,4517.6,6.0224]